bitfinex/quotes_ETHUSD_20220117
["timestamp","ask_amount","ask_price","bid_price","bid_amount"]
[1642417197627,3.05,3273.8,3273.7,1.44141054]
[1642417197879,3.05,3273.8,3273.7,0.44141054]
[1642417198271,3.05,3273.8,3273.7,0.74141054]
[1642417198470,3.05,3273.8,3273.7,3.45346859]
[1642417198671,3.05,3273.8,3273.7,1.44141054]
[1642417199073,3.05,3273.8,3273.7,0.44141054]
[1642417201821,3.05,3273.8,3273.7,3.1386821]
[1642417201822,5.6645643,3273.8,3273.7,3.1386821]
[1642417202322,5.6645643,3273.8,3273.7,4.1386821]
[1642417202522,3.05,3273.8,3273.7,4.1386821]
[1642417202728,3.05,3273.8,3273.7,1.44141054]
[1642417203524,5.66449544,3273.8,3273.7,1.44141054]
[1642417203724,5.66449544,3273.8,3273.7,0.44141054]
[1642417204525,5.66449544,3273.8,3273.7,0.00341054]
[1642417204925,12.16449544,3273.8,3273.7,0.00341054]
[1642417205377,16.91449544,3273.8,3273.7,0.00341054]
[1642417206271,16.91449544,3273.8,3273.6,0.02070991]
[1642417206471,12.16449544,3273.8,3273.6,0.02070991]
[1642417206672,12.16449544,3273.8,3273.0,0.79589027]
[1642417206874,0.7638,3273.5,3272.4,3.0782]
[1642417207273,0.7638,3273.5,3273.1,0.00682108]
[1642417207471,0.3,3273.4,3273.1,0.00682108]
[1642417207873,0.3,3273.4,3272.6,0.0096632]
[1642417208076,2.91449544,3273.4,3272.5,0.01023162]
[1642417209126,22.91449544,3273.4,3272.5,0.01023162]
[1642417209324,1.43996522,3272.9,3272.5,0.01023162]
[1642417209722,0.99681999,3272.7,3272.5,0.01023162]
[1642417210522,0.99681999,3272.7,3272.4,0.01080005]
[1642417212222,4.15642536,3272.7,3272.4,0.01080005]
[1642417212882,4.15642536,3272.7,3272.2,0.01193689]
[1642417213376,4.15642536,3272.7,3272.1,0.01250532]
[1642417214574,3.15960537,3272.7,3272.1,0.12690532]
[1642417214776,0.99681999,3272.4,3272.1,0.12770532]
[1642417214978,1.99363998,3272.4,3272.2,0.01193689]
[1642417215175,1.99363998,3272.4,3272.3,0.76375]
[1642417215576,1.99363998,3272.4,3272.3,0.77511847]
[1642417217125,2.02347326,3272.4,3272.3,0.77511847]
[1642417217927,2.02347326,3272.4,3272.3,0.01136847]
[1642417218127,2.02347326,3272.4,3272.3,8.14936847]
[1642417218328,1.52445222,3272.4,3272.3,13.01936847]
[1642417218532,1.02085259,3272.4,3272.3,22.5766361]
[1642417218729,3.1,3272.7,3272.5,1.42312145]
[1642417218931,20.18910103,3273.4,3272.7,13.25]
[1642417218932,0.18910103,3273.4,3272.7,13.25]
[1642417219128,0.18910103,3273.4,3272.9,1.5331234]
[1642417219329,0.18910103,3273.4,3273.0,0.438]
[1642417219529,0.18910103,3273.4,3273.0,0.87098951]
[1642417219729,0.18910103,3273.4,3273.1,0.12]
[1642417219930,0.18910103,3273.4,3273.2,0.438]
[1642417220132,0.18910103,3273.4,3273.3,0.7635]
[1642417220400,0.18910103,3273.4,3273.3,0.76918423]
[1642417220788,0.18910103,3273.4,3273.3,0.88518423]
[1642417220986,0.18910103,3273.4,3273.3,1.88438423]
[1642417221191,0.18910103,3273.4,3273.3,1.88518423]
[1642417221388,0.18910103,3273.4,3273.3,4.07638843]
[1642417221587,0.18910103,3273.4,3273.3,4.08278843]
[1642417221789,0.18910103,3273.7,3273.4,7.56361316]
[1642417221987,0.18910103,3273.7,3273.5,0.438]
[1642417222190,0.18910103,3273.7,3273.4,7.51474494]
[1642417222388,0.18910103,3274.1,3273.5,0.438]
[1642417222688,0.00284212,3274.0,3273.6,0.1496]
[1642417222887,0.33046608,3274.4,3273.8,0.7632143]
[1642417223089,0.33046608,3274.4,3274.0,1.52639]
[1642417223289,3.48658031,3274.6,3274.1,3.51860066]
[1642417223489,1.55339769,3274.8,3274.3,6.85]
[1642417223692,0.00113685,3274.5,3274.4,5.338]
[1642417223889,1.55339769,3274.8,3274.5,7.5]
[1642417224127,3.12736234,3275.3,3274.7,12.4]
[1642417224327,0.14136505,3275.1,3274.8,8.96024683]
[1642417224526,3.12736234,3275.3,3274.9,16.3912116]
[1642417224727,1.56033553,3275.2,3275.0,0.438]
[1642417224929,0.39883553,3275.2,3275.1,2.9822844]
[1642417225128,2.38823928,3275.4,3275.3,0.5]
[1642417225327,2.38823928,3275.4,3275.3,3.9493937]
[1642417225626,2.38823928,3275.4,3275.3,4.3821937]
[1642417225827,1.88823928,3275.4,3275.3,2.63377]
[1642417226026,1.88823928,3275.4,3275.3,1.738]
[1642417226229,3.45782842,3275.7,3275.3,0.438]
[1642417226627,0.00625265,3275.6,3275.3,0.485]
[1642417227027,0.00568423,3275.5,3275.3,0.485]
[1642417227227,0.00568423,3275.5,3275.3,0.45106446]
[1642417227526,0.00511581,3275.4,3275.3,0.95106446]
[1642417227973,0.00511581,3275.4,3275.3,1.25106446]
[1642417228572,0.00511581,3275.4,3275.3,3.88830195]
[1642417228777,0.00511581,3275.4,3275.3,4.00590195]
[1642417228972,0.00511581,3275.4,3275.3,5.00910195]
[1642417229171,0.00511581,3275.4,3275.3,5.01446062]
[1642417229373,0.00511581,3275.4,3275.3,5.78385062]
[1642417229573,0.33046608,3275.7,3275.3,5.29265062]
[1642417229774,0.33046608,3275.7,3275.6,1.33595027]
[1642417229973,0.33046608,3275.7,3275.6,4.571122]
[1642417230174,0.33046608,3275.7,3275.6,1.438]
[1642417230574,0.33046608,3275.7,3275.6,3.4589362]
[1642417230775,0.33046608,3275.7,3275.6,4.5218962]
[1642417230974,0.33046608,3275.7,3275.6,3.38996]
[1642417231175,0.33046608,3275.7,3275.6,2.51316]
[1642417231384,0.14136505,3276.0,3275.7,0.16953392]
[1642417231629,0.14136505,3276.0,3275.7,1.0]
[1642417231823,0.00284212,3275.9,3275.8,1.50404379]
[1642417232023,0.00284212,3275.9,3275.8,2.24364379]
[1642417232322,0.00284212,3275.9,3275.8,2.25404379]
[1642417232523,3.24136505,3276.0,3275.8,2.29318552]
[1642417232723,3.24136505,3276.0,3275.8,2.25564379]
[1642417232923,2.74183113,3276.0,3275.9,2.88246098]
[1642417233122,2.74183113,3276.0,3275.9,4.32046098]
[1642417233322,2.60083113,3276.0,3275.9,1.5668]
[1642417233523,2.60083113,3276.0,3275.9,0.438]
[1642417233723,2.60083113,3276.0,3275.9,1.5548]
[1642417233925,2.24183113,3276.0,3275.9,1.5548]
[1642417234123,2.24183113,3276.0,3275.9,1.5572]
[1642417234423,2.24183113,3276.0,3275.9,1.558]
[1642417234624,2.28201989,3276.0,3275.9,1.5548]
[1642417234823,2.28201989,3276.0,3275.9,8.22144196]
[1642417234824,2.14101989,3276.0,3275.9,8.22144196]
[1642417235023,2.14101989,3276.0,3275.9,1.5684]
[1642417235223,2.14101989,3276.0,3275.9,1.5668]
[1642417235475,1.7499724,3276.0,3275.9,4.3380058]
[1642417235673,1.7499724,3276.0,3275.9,4.3388058]
[1642417235875,1.6089724,3276.0,3275.9,4.3436058]
[1642417236074,1.2499724,3276.0,3275.9,4.3436058]
[1642417236278,1.2499724,3276.0,3275.9,4.3420058]
[1642417236478,1.2499724,3276.0,3275.9,4.3412058]
[1642417236479,1.1089724,3276.0,3275.9,4.3412058]
[1642417236675,0.7499724,3276.0,3275.9,4.3396058]
[1642417236876,0.7499724,3276.0,3275.9,4.3404058]
[1642417237075,0.6089724,3276.0,3275.9,4.37410971]
[1642417237275,0.18910103,3276.1,3275.9,4.37410971]
[1642417237276,0.18910103,3276.1,3276.0,12.159]
[1642417237477,0.18910103,3276.1,3276.0,1.55971]
[1642417237677,0.23683701,3276.4,3276.0,5.65124381]
[1642417237878,0.23683701,3276.4,3276.1,1.5]
[1642417238078,0.00113685,3276.3,3276.2,3.54335899]
[1642417238279,0.00113685,3276.3,3276.2,3.67455899]
[1642417238482,0.00113685,3276.3,3276.2,4.67295899]
[1642417238679,0.23683701,3276.4,3276.3,0.49886315]
[1642417238880,0.23683701,3276.4,3276.3,3.00875795]
[1642417239135,0.23683701,3276.4,3276.3,4.12955795]
[1642417239324,0.23683701,3276.4,3276.3,0.5564]
[1642417239623,0.23683701,3276.4,3276.3,0.558]
[1642417239824,0.23683701,3276.4,3276.3,0.438]
[1642417240223,0.23683701,3276.7,3276.4,0.26302614]
[1642417240423,0.23683701,3276.7,3276.5,0.438]
[1642417240424,0.23230897,3276.7,3276.5,0.438]
[1642417242124,0.23230897,3276.7,3276.6,0.01529632]
[1642417242324,0.23230897,3276.7,3276.6,0.45329632]
[1642417242526,0.23458266,3276.7,3276.6,0.45329632]
[1642417245975,11.6205929,3276.8,3276.7,0.26444348]
[1642417246375,11.6205929,3276.8,3276.6,0.45329632]
[1642417247123,11.6205929,3276.8,3276.7,2.58302227]
[1642417247322,11.6205929,3276.8,3276.7,3.44342227]
[1642417247626,11.12114942,3276.8,3276.7,1.8596]
[1642417247822,11.12114942,3276.8,3276.7,0.8596]
[1642417248021,10.62114942,3276.8,3276.7,0.8596]
[1642417248222,10.62114942,3276.8,3276.7,0.862]
[1642417248422,10.12114942,3276.8,3276.7,3.52946763]
[1642417248623,10.12114942,3276.8,3276.7,4.29372763]
[1642417248923,9.62114942,3276.8,3276.7,5.29372763]
[1642417249125,9.50014942,3276.8,3276.7,5.28892763]
[1642417249325,9.50014942,3276.8,3276.7,2.61746]
[1642417249526,9.12114942,3276.8,3276.7,1.8564]
[1642417249725,9.12114942,3276.8,3276.7,0.5588]
[1642417249925,9.00014942,3276.8,3276.7,0.558]
[1642417250125,9.00014942,3276.8,3276.7,0.438]
[1642417250126,8.62114942,3276.8,3276.7,0.438]
[1642417250372,8.50014942,3276.8,3276.7,0.438]
[1642417250773,8.12114942,3276.8,3276.7,0.438]
[1642417251172,8.00014942,3276.8,3276.7,0.438]
[1642417251374,8.00014942,3276.8,3276.7,0.5532]
[1642417251572,8.00014942,3276.8,3276.7,0.438]
[1642417251973,7.62114942,3276.8,3276.7,0.438]
[1642417252175,7.62114942,3276.8,3276.7,0.45329796]
[1642417252374,7.50014942,3276.8,3276.7,0.45329796]
[1642417252574,7.12114942,3276.8,3276.7,0.56849796]
[1642417252775,7.12114942,3276.8,3276.7,0.56929796]
[1642417252974,7.12114942,3276.8,3276.7,0.57009796]
[1642417252975,7.00014942,3276.8,3276.7,0.57009796]
[1642417253174,6.62114942,3276.8,3276.7,0.57249796]
[1642417253376,6.62114942,3276.8,3276.7,0.45329796]
[1642417253575,6.50014942,3276.8,3276.7,0.56849796]
[1642417253776,6.50014942,3276.8,3276.7,0.45329796]
[1642417253975,6.12114942,3276.8,3276.7,1.21595796]
[1642417254221,6.00014942,3276.8,3276.7,0.45329796]
[1642417254619,5.62114942,3276.8,3276.7,0.45329796]
[1642417254823,5.50014942,3276.8,3276.7,0.45329796]
[1642417255220,5.12114942,3276.8,3276.7,0.45329796]
[1642417255620,5.00014942,3276.8,3276.7,0.45329796]
[1642417256022,5.00014942,3276.8,3276.7,0.86849796]
[1642417256221,4.62114942,3276.8,3276.7,0.45329796]
[1642417256423,4.50014942,3276.8,3276.7,0.57169796]
[1642417256622,4.50014942,3276.8,3276.7,0.45329796]
[1642417256822,4.12114942,3276.8,3276.7,0.45329796]
[1642417257023,4.12114942,3276.8,3276.7,1.45329796]
[1642417257222,4.00014942,3276.8,3276.7,0.438]
[1642417257425,3.93414942,3276.8,3276.7,0.438]
[1642417257875,3.93314942,3276.8,3276.7,0.438]
[1642417258678,3.43414942,3276.8,3276.7,0.438]
[1642417259478,3.43314942,3276.8,3276.7,0.438]
[1642417259877,2.93414942,3276.8,3276.7,0.438]
[1642417260282,2.93314942,3276.8,3276.7,0.438]
[1642417260479,2.43414942,3276.8,3276.7,0.438]
[1642417260983,2.43314942,3276.8,3276.7,0.438]
[1642417261182,1.93414942,3276.8,3276.7,0.438]
[1642417261381,1.93314942,3276.8,3276.7,0.438]
[1642417261823,1.43414942,3276.8,3276.7,0.438]
[1642417262122,1.43314942,3276.8,3276.7,3.0193065]
[1642417262325,0.93414942,3276.8,3276.7,3.0201065]
[1642417262522,0.93414942,3276.8,3276.7,1.5588]
[1642417262729,10.0,3277.5,3276.8,13.8]
[1642417262923,10.0,3277.5,3277.0,0.76252]
[1642417263123,0.00284212,3277.2,3277.1,0.438]
[1642417263321,0.00284212,3277.2,3277.1,0.558]
[1642417263523,0.00397897,3277.4,3277.1,0.5564]
[1642417263722,0.00397897,3277.4,3277.3,1.54108877]
[1642417263926,11.30741015,3277.5,3277.3,1.97908877]
[1642417264126,11.30741015,3277.5,3277.4,0.76249]
[1642417264324,11.30741015,3277.5,3277.4,1.70049]
[1642417264325,11.20741015,3277.5,3277.4,1.70049]
[1642417264525,11.21195754,3277.5,3277.4,2.20049]
[1642417264925,10.71195754,3277.5,3277.4,2.20049]
[1642417265125,10.71195754,3277.5,3277.4,4.5989156]
[1642417265376,10.21195754,3277.5,3277.4,1.438]
[1642417265573,10.21195754,3277.5,3277.4,0.438]
[1642417265774,9.87995754,3277.5,3277.4,0.438]
[1642417266373,9.71195754,3277.5,3277.4,0.438]
[1642417266673,9.37995754,3277.5,3277.4,0.438]
[1642417266873,11.81746856,3277.5,3277.4,0.438]
[1642417267073,11.64946856,3277.5,3277.4,0.438]
[1642417267273,3.91093841,3277.5,3277.4,4.93746875]
[1642417267473,3.91093841,3277.5,3277.4,2.37814595]
[1642417267673,3.74293841,3277.5,3277.4,3.38934595]
[1642417267877,3.41093841,3277.5,3277.4,3.38774595]
[1642417268275,3.24293841,3277.5,3277.4,3.38854595]
[1642417268475,3.24293841,3277.5,3277.4,3.38134595]
[1642417268476,2.91093841,3277.5,3277.4,3.38134595]
[1642417268675,2.91093841,3277.5,3277.4,3.37974595]
[1642417268876,2.74293841,3277.5,3277.4,3.37734595]
[1642417269134,1.37852084,3277.6,3277.5,0.02657261]
[1642417269324,1.37852084,3277.6,3277.5,0.46457261]
[1642417269622,1.37852084,3277.6,3277.5,1.89097261]
[1642417269825,1.37852084,3277.6,3277.5,0.88457261]
[1642417270024,1.37852084,3277.6,3277.5,1.8636]
[1642417270226,1.37852084,3277.6,3277.5,1.8652]
[1642417270431,1.37852084,3277.6,3277.5,0.8652]
[1642417270626,1.37852084,3277.6,3277.5,4.15981794]
[1642417270826,1.37852084,3277.6,3277.5,1.8604]
[1642417271026,1.37852084,3277.6,3277.5,0.8556]
[1642417271226,0.87894823,3277.6,3277.5,1.8612]
[1642417271427,0.87894823,3277.6,3277.5,1.8596]
[1642417271627,3.2439228,3277.6,3277.5,0.8612]
[1642417271829,3.2439228,3277.6,3277.5,0.8604]
[1642417272028,2.8149228,3277.6,3277.5,1.862]
[1642417272228,2.43597457,3277.6,3277.5,0.87554521]
[1642417272431,2.36497457,3277.6,3277.5,4.19435248]
[1642417272629,2.36497457,3277.6,3277.5,4.15693071]
[1642417272874,2.36497457,3277.6,3277.5,1.87874521]
[1642417273078,2.36497457,3277.6,3277.5,4.28670396]
[1642417273274,1.93597457,3277.6,3277.5,4.28350396]
[1642417273478,1.86497457,3277.6,3277.5,4.14930597]
[1642417273675,1.12172293,3277.8,3277.5,4.14610597]
[1642417273875,1.12172293,3277.8,3277.6,0.429]
[1642417274077,1.12172293,3277.8,3277.6,0.9918]
[1642417274378,1.12172293,3277.8,3277.7,0.1208]
[1642417274576,0.00284212,3278.0,3277.7,0.12]
[1642417274877,10.0,3278.1,3277.8,0.7624]
[1642417275076,10.0,3278.1,3277.8,1.3768]
[1642417275276,0.00284212,3278.0,3277.8,1.3776]
[1642417275477,0.00284212,3278.0,3277.8,2.3792]
[1642417275680,0.00227369,3277.9,3277.8,2.38]
[1642417275876,0.00227369,3277.9,3277.8,2.3768]
[1642417276076,0.00227369,3277.9,3277.8,2.3784]
[1642417276275,0.00227369,3277.9,3277.8,2.3792]
[1642417276731,0.00227369,3277.9,3277.8,2.38]
[1642417276927,0.00227369,3277.9,3277.8,2.3808]
[1642417277526,0.00227369,3277.9,3277.8,2.38]
[1642417277727,0.00227369,3277.9,3277.8,2.3784]
[1642417278025,0.00227369,3277.9,3277.8,2.3768]
[1642417278229,11.50672798,3278.1,3277.8,2.3784]
[1642417278428,11.50672798,3278.1,3277.8,2.3792]
[1642417278627,11.50672798,3278.1,3277.8,2.38]
[1642417278826,11.50672798,3278.1,3277.8,2.3776]
[1642417279027,11.50672798,3278.1,3277.9,0.1144]
[1642417279227,9.95227369,3278.1,3277.9,2.38901835]
[1642417279427,9.95227369,3278.1,3277.9,2.68981835]
[1642417279627,9.95227369,3278.1,3278.0,3.06305843]
[1642417279829,9.95227369,3278.1,3278.0,1.8373]
[1642417280029,9.95341054,3278.1,3278.0,5.08889262]
[1642417280229,9.95341054,3278.1,3278.0,5.08809262]
[1642417280481,9.95341054,3278.1,3278.0,5.08649262]
[1642417280682,9.95341054,3278.1,3278.0,2.8349]
[1642417280885,9.95341054,3278.1,3278.0,2.8357]
[1642417281085,9.95341054,3278.1,3278.0,2.8381]
[1642417281284,9.95341054,3278.1,3278.0,5.09509205]
[1642417281483,9.95341054,3278.1,3278.0,2.8397]
[1642417281781,9.95341054,3278.1,3278.0,2.8373]
[1642417281982,9.95341054,3278.1,3278.0,2.8389]
[1642417282182,9.95341054,3278.1,3278.0,2.85542887]
[1642417282383,9.95341054,3278.1,3278.0,2.85702887]
[1642417282584,9.95341054,3278.1,3278.0,2.35382887]
[1642417282782,9.45341054,3278.1,3278.0,2.35782887]
[1642417282983,9.45341054,3278.1,3278.0,4.61352795]
[1642417283182,8.95341054,3278.1,3278.0,2.35542887]
[1642417283381,8.95341054,3278.1,3278.0,2.35702887]
[1642417283585,8.45341054,3278.1,3278.0,2.35302887]
[1642417283784,8.45341054,3278.1,3278.0,0.56652887]
[1642417283983,7.95341054,3278.1,3278.0,0.56972887]
[1642417284222,9.2119233,3278.1,3278.0,0.45292887]
[1642417284425,8.7119233,3278.1,3278.0,0.45292887]
[1642417284622,8.7119233,3278.1,3278.0,0.56892887]
[1642417284822,8.2119233,3278.1,3278.0,0.56972887]
[1642417285023,8.2119233,3278.1,3278.0,0.56812887]
[1642417285222,8.2119233,3278.1,3278.0,0.56892887]
[1642417285425,8.2119233,3278.1,3278.0,0.56972887]
[1642417285823,7.7119233,3278.1,3278.0,0.57052887]
[1642417286024,7.7119233,3278.1,3278.0,0.45292887]
[1642417286227,7.2119233,3278.1,3278.0,0.45292887]
[1642417286426,7.2119233,3278.1,3278.0,0.56812887]
[1642417286725,6.7119233,3278.1,3278.0,0.45292887]
[1642417286924,6.2119233,3278.1,3278.0,0.45292887]
[1642417287324,5.7119233,3278.1,3278.0,0.45292887]
[1642417287727,5.2119233,3278.1,3278.0,0.45292887]
[1642417288189,4.7119233,3278.1,3278.0,0.45292887]
[1642417288591,4.2119233,3278.1,3278.0,0.56812887]
[1642417288796,4.2119233,3278.1,3278.0,0.45292887]
[1642417288989,4.2119233,3278.1,3277.9,0.1152]
[1642417289291,4.2119233,3278.1,3277.3,0.1232]
[1642417289489,3.7119233,3278.1,3277.2,0.1152]
[1642417289689,3.7119233,3278.1,3277.4,0.00284211]
[1642417290091,4.4745333,3278.1,3277.2,0.50397896]
[1642417290290,4.4745333,3278.1,3277.2,0.00397896]
[1642417290489,4.4745333,3278.1,3277.3,0.00341054]
[1642417290690,4.4745333,3278.1,3276.9,0.76269]
[1642417290691,4.4745333,3278.1,3277.2,0.00397896]
[1642417291190,4.4745333,3278.1,3277.1,0.12294738]
[1642417291393,4.4745333,3278.1,3277.1,0.00454738]
[1642417291394,2.76645475,3278.0,3277.1,0.00454738]
[1642417291647,2.76645475,3278.0,3277.0,0.124]
[1642417291648,1.22870724,3277.3,3277.2,0.00397896]
[1642417291831,1.22870724,3277.3,3277.1,0.11974738]
[1642417292032,1.52870724,3277.3,3277.1,0.00454738]
[1642417292231,1.52870724,3277.3,3277.2,0.00397896]
[1642417292431,1.52870724,3277.3,3277.1,0.00454738]
[1642417292632,1.52870724,3277.3,3277.1,0.11894738]
[1642417292834,1.52870724,3277.3,3277.1,0.12054738]
[1642417293032,1.22870724,3277.3,3277.2,0.00397896]
[1642417293433,1.22870724,3277.3,3277.0,0.13711581]
[1642417293632,1.22870724,3277.3,3277.1,0.00454738]
[1642417294036,3.82870724,3277.3,3277.1,0.00454738]
[1642417294233,3.82870724,3277.3,3277.1,0.13014738]
[1642417294432,3.32870724,3277.3,3277.1,0.00454738]
[1642417294632,3.32870724,3277.3,3277.2,0.00397896]
[1642417294832,3.32870724,3277.3,3277.1,0.00454738]
[1642417294833,1.14408345,3277.2,3277.1,0.00454738]
[1642417295374,0.91008345,3277.2,3277.1,0.00454738]
[1642417295574,3.06270724,3277.3,3277.1,0.12774738]
[1642417295776,3.06270724,3277.3,3277.2,0.234]
[1642417295977,3.06270724,3277.3,3277.2,0.23797896]
[1642417296181,3.06270724,3277.3,3277.2,0.14237896]
[1642417296378,2.56270724,3277.3,3277.2,0.13757896]
[1642417296580,2.56270724,3277.3,3277.2,0.33983745]
[1642417296776,2.06270724,3277.3,3277.2,0.33903745]
[1642417296976,2.06270724,3277.3,3277.2,0.33743745]
[1642417297177,1.56270724,3277.3,3277.2,0.34767416]
[1642417297480,1.56270724,3277.3,3277.2,0.15261567]
[1642417297678,0.22317158,3278.0,3277.2,0.59781567]
[1642417297878,0.22317158,3278.0,3277.4,0.76254]
[1642417298077,0.22081698,3278.0,3277.4,1.06254]
[1642417298278,1.32881143,3277.8,3277.5,0.13027369]
[1642417298478,0.22081698,3278.0,3277.5,0.13267369]
[1642417298681,0.22081698,3278.0,3277.6,0.50170527]
[1642417298879,0.22081698,3278.0,3277.6,0.61930527]
[1642417299136,0.22081698,3278.0,3277.7,0.11713684]
[1642417299326,0.22081698,3278.0,3277.7,0.00113684]
[1642417299625,0.16679004,3278.0,3277.7,0.00113684]
[1642417299826,0.3,3277.8,3277.7,0.00113684]
[1642417300828,1.6422046,3277.8,3277.7,0.00113684]
[1642417302228,1.3422046,3277.8,3277.7,0.00113684]
[1642417302428,6.2422046,3277.8,3277.7,0.00113684]
[1642417302874,8.37738867,3277.8,3277.7,0.00113684]
[1642417303474,8.67738867,3277.8,3277.7,0.00113684]
[1642417305281,8.37738867,3277.8,3277.7,0.00113684]
[1642417305677,8.67738867,3277.8,3277.7,0.00113684]
[1642417309728,11.39220955,3277.8,3277.7,0.00113684]
[1642417309927,11.39220955,3277.8,3277.6,7.531e-05]
[1642417310128,2.95676285,3277.7,3277.6,7.531e-05]
[1642417310371,2.95676285,3277.7,3276.9,0.45047367]
[1642417310372,0.76275,3277.5,3276.9,0.45047367]
[1642417310573,2.65632202,3277.4,3276.9,0.45047367]
[1642417310871,2.65632202,3277.4,3277.0,0.00397897]
[1642417311675,5.09150609,3277.4,3277.0,0.13460402]
[1642417311873,1.47937377,3277.3,3277.0,0.13460402]
[1642417312077,1.47937377,3277.3,3277.1,0.00341054]
[1642417312273,1.47937377,3277.3,3277.2,0.03021903]
[1642417312674,1.47937377,3277.3,3277.2,0.03306115]
[1642417313680,1.47937377,3277.3,3277.2,0.00284212]
[1642417314133,4.30105937,3277.3,3277.2,0.00284212]
[1642417314527,1.47937377,3277.3,3277.2,0.00284212]
[1642417314731,4.15867619,3277.3,3277.2,0.00284212]
[1642417314929,1.53545614,3276.5,3276.3,0.12555793]
[1642417315128,2.65303666,3277.1,3276.3,0.12555793]
[1642417315328,2.65303666,3277.1,3276.4,0.00738951]
[1642417315530,2.54545547,3277.2,3276.4,0.00738951]
[1642417315729,2.66757839,3277.2,3276.4,0.00738951]
[1642417315929,0.30235462,3277.2,3276.4,0.00738951]
[1642417316329,0.30235462,3277.2,3276.2,0.4152]
[1642417316330,0.76285,3276.8,3276.3,0.00795793]
[1642417316731,0.76285,3276.8,3276.5,0.13063983]
[1642417317234,0.76285,3276.8,3276.6,0.00625266]
[1642417318379,0.76285,3276.8,3276.4,0.00738951]
[1642417319176,0.76285,3276.8,3276.2,0.00852635]
[1642417319576,0.76285,3276.8,3276.1,0.00909478]
[1642417319780,37.88,3276.7,3276.1,0.00909478]
[1642417319976,37.88235462,3276.7,3276.1,0.00909478]
[1642417320179,1.54751748,3275.7,3275.6,0.0119369]
[1642417320577,0.76321,3275.8,3275.4,0.01307374]
[1642417320779,0.76321,3275.8,3275.3,0.12804217]
[1642417320977,0.76321,3275.8,3275.3,0.13684217]
[1642417321277,0.76321,3275.8,3275.2,1.04794181]
[1642417321278,0.76321,3275.8,3275.4,0.01307374]
[1642417321480,0.00235462,3275.9,3275.4,0.01307374]
[1642417321731,0.00235462,3275.9,3275.3,0.13364217]
[1642417321928,0.05638157,3275.9,3275.4,0.01307374]
[1642417322431,0.04213793,3275.7,3275.2,0.01421059]
[1642417323025,0.04213793,3275.7,3275.2,0.12861059]
[1642417323226,0.04449255,3275.7,3275.2,0.12941059]
[1642417323427,0.04449255,3275.7,3275.3,0.01364217]
[1642417323827,0.04449255,3275.7,3275.3,0.90228217]
[1642417324025,0.0985195,3275.7,3275.3,0.89748217]
[1642417324226,0.10087412,3275.7,3275.4,0.12907374]
[1642417324626,0.10087412,3275.7,3275.5,0.01250532]
[1642417325131,0.15490107,3275.7,3275.5,0.01250532]
[1642417325376,0.15725569,3275.7,3275.5,0.01250532]
[1642417325878,2.65725569,3275.7,3275.5,0.01250532]
[1642417326077,3.01128264,3275.7,3275.5,0.01250532]
[1642417326682,3.01128264,3275.7,3275.3,0.01364217]
[1642417326877,2.71128264,3275.7,3275.5,0.01250532]
[1642417327077,2.76530959,3275.7,3275.3,0.77668217]
[1642417327277,2.76530959,3275.7,3275.3,0.89508217]
[1642417327478,2.76766421,3275.7,3275.4,2.23789657]
[1642417327684,2.76766421,3275.7,3275.4,2.34135221]
[1642417327878,2.76766421,3275.7,3275.5,0.13170532]
[1642417328077,2.76766421,3275.7,3275.5,0.14370532]
[1642417328278,2.82169116,3275.7,3275.6,0.0119369]
[1642417328478,2.82404578,3275.7,3275.6,0.0119369]
[1642417328678,2.82404578,3275.7,3275.6,0.1383369]
[1642417329135,2.82404578,3275.7,3275.6,0.1343369]
[1642417329327,2.87807273,3275.7,3275.6,0.1367369]
[1642417329528,2.88042735,3275.7,3275.6,0.1327369]
[1642417329728,2.87807273,3275.7,3275.6,0.0119369]
[1642417330333,2.93209968,3275.7,3275.6,0.0119369]
[1642417330533,2.9344543,3275.7,3275.6,0.0119369]
[1642417330729,2.9344543,3275.7,3275.6,0.1248]
[1642417330930,2.9344543,3275.7,3275.6,0.1383369]
[1642417331131,2.9344543,3275.7,3275.6,0.0119369]
[1642417331430,2.98848125,3275.7,3275.6,0.1287369]
[1642417331630,2.99083587,3275.7,3275.6,0.1295369]
[1642417331832,2.99083587,3275.7,3275.6,0.1263369]
[1642417332031,2.99083587,3275.7,3275.6,0.0119369]
[1642417332231,3.04486282,3275.7,3275.6,0.0119369]
[1642417332430,3.04486282,3275.7,3275.6,0.1303369]
[1642417332630,3.04721744,3275.7,3275.6,0.0119369]
[1642417332880,3.04486282,3275.7,3275.6,0.0119369]
[1642417333077,3.04486282,3275.7,3275.6,0.1375369]
[1642417333277,3.04486282,3275.7,3275.6,0.0119369]
[1642417333777,3.04721744,3275.7,3275.6,0.0119369]
[1642417333978,3.04721744,3275.7,3275.6,0.1335369]
[1642417334178,3.04721744,3275.7,3275.6,0.0119369]
[1642417334980,3.04721744,3275.7,3275.6,0.1279369]
[1642417335179,3.04721744,3275.7,3275.6,0.1367369]
[1642417335383,3.04721744,3275.7,3275.6,0.0119369]
[1642417335779,3.04957206,3275.7,3275.6,0.0119369]
[1642417335980,3.10359901,3275.7,3275.6,0.0119369]
[1642417336178,3.04957206,3275.7,3275.6,0.0119369]
[1642417336379,3.04957206,3275.7,3275.5,0.01250532]
[1642417336825,3.05192668,3275.7,3275.4,1.83893374]
[1642417337026,3.10595363,3275.7,3275.5,0.01250532]
[1642417337226,3.10595363,3275.7,3275.5,0.13010532]
[1642417337426,3.10595363,3275.7,3275.5,0.13090532]
[1642417337626,3.10595363,3275.7,3275.6,0.0119369]
[1642417337827,3.10830825,3275.7,3275.6,0.0119369]
[1642417338032,3.1623352,3275.7,3275.6,0.0119369]
[1642417338329,3.10830825,3275.7,3275.5,0.13490532]
[1642417338727,3.10830825,3275.7,3275.6,0.0119369]
[1642417338926,3.11066287,3275.7,3275.6,0.0119369]
[1642417339928,3.11301749,3275.7,3275.6,0.0119369]
[1642417340128,3.16704444,3275.7,3275.6,0.0119369]
[1642417340975,3.46939906,3275.7,3275.6,0.0119369]
[1642417341176,3.46939906,3275.7,3275.5,0.01250532]
[1642417341577,3.46939906,3275.7,3275.5,1.01250532]
[1642417341775,3.46939906,3275.7,3275.5,0.43810532]
[1642417341977,3.17175368,3275.7,3275.6,0.0119369]
[1642417342177,3.22342601,3275.7,3275.6,0.1263369]
[1642417342476,3.22342601,3275.7,3275.6,0.0119369]
[1642417342676,3.22342601,3275.7,3275.6,0.1343369]
[1642417343080,3.22342601,3275.7,3275.6,0.1359369]
[1642417343278,3.22342601,3275.7,3275.6,0.00958228]
[1642417343879,3.22342601,3275.7,3275.6,2.10436873]
[1642417344133,3.22342601,3275.7,3275.6,1.00958228]
[1642417344327,3.22342601,3275.7,3275.6,0.00958228]
[1642417345328,3.22342601,3275.7,3275.5,0.3101507]
[1642417345529,3.22342601,3275.7,3275.6,0.00958228]